Cogmind - Beta 10.2 @@@ ROGUE MODE // 2021.11.28 @ 18:15:06 Player: Louistron Result: Self-destructed Performance ------------- Evolutions (1) 500 Regions Visited (2) 400 Robots Destroyed (19) 95 Value Destroyed (530) 530 Prototype IDs (1) 20 Alien Tech Used (0) 0 Bonus (8) 8 TOTAL SCORE: 1553 Bonus ------- High Alert Combat Kills 8 Cogmind --------- Core Integrity 376/400 Matter 191/300 Energy 156/160 System Corruption 0% Temperature Cool (17) Movement Hovering (48) Location -9/Materials Parts ------- > --- POWER (1) -------- Light Nuclear Core > --- PROPULSION (4) --- Hover Unit Hover Unit Hover Unit Hover Unit > --- UTILITY (2) ------ Medium Storage Unit Core Shielding > --- WEAPON (2) ------- Advanced Beam Cannon Mini Grenade Launcher > --- INVENTORY (8) ---- Light Ion Engine Flight Unit Small Laser Faulty Advanced Beam Cannon Assault Rifle Peak State ------------ > --- POWER ------------ Light Nuclear Core > --- PROPULSION ------- Hover Unit Hover Unit Hover Unit Hover Unit > --- UTILITY ---------- Medium Storage Unit Core Shielding > --- WEAPON ----------- Advanced Beam Cannon Mini Grenade Launcher > --- INVENTORY -------- Light Ion Engine Flight Unit Small Laser Advanced Beam Cannon Assault Rifle [Rating: 14] Favorites ----------- Power Light Nuclear Core Engine Ion Engine Power Core Light Nuclear Core Propulsion Hover Unit Wheel Wheel Hover Unit Hover Unit Flight Unit Flight Unit Utility Core Shielding Storage Medium Storage Unit Protection Core Shielding Weapon Assault Rifle Energy Gun Small Laser Energy Cannon Advanced Beam Cannon Ballistic Gun Assault Rifle Launcher Mini Grenade Launcher Build | -11 -10 -9 ------- Run | Scr Mat Mat Slots Evolved 2 | . . 2 Power . | . . . Propulsion 2 | . . 2 Utility . | . . . Weapon . | . . . Parts Attached 18 | 5 5 8 Power 2 | 1 1 . Engine 1 | 1 . . Core 1 | . 1 . Reactor . | . . . Propulsion 8 | 2 2 4 Treads . | . . . Leg . | . . . Wheel 2 | 2 . . Hover 5 | . 2 3 Flight 1 | . . 1 Utility 2 | . 1 1 Device . | . . . Storage 1 | . . 1 Processor . | . . . Hackware . | . . . Protection 1 | . 1 . Artifact . | . . . Weapon 6 | 2 1 3 Energy Gun 1 | . 1 . Energy Cannon 2 | . . 2 Ballistic Gun 2 | 2 . . Ballistic Cannon . | . . . Launcher 1 | . . 1 Special Weapon . | . . . Impact Weapon . | . . . Slashing Weapon . | . . . Piercing Weapon . | . . . Special Melee Weapon . | . . . Unidentified Prototypes 1 | . . 1 Parts Lost 1 | . 1 . Power . | . . . Propulsion . | . . . Utility . | . . . Weapon 1 | . 1 . Highest Loss Streak 1 | . 1 . Average Slot Usage (%) 87 | . 75 99 Engine 4 | . 8 . Core 8 | . 5 11 Wheel 9 | . 17 . Hover 26 | . 10 44 Storage 5 | . . 11 Protection 7 | . 4 11 Energy Gun 2 | . 1 4 Energy Cannon 2 | . . 5 Ballistic Gun 19 | . 26 10 Naked Turns . | . . . Heaviest Build 20 | 9 10 20 Greatest Support 26 | 26 26 24 Greatest Overweight (x) 1 | . . 1 Average Overweight (x) . | . . . Largest Inventory Capacity 8 | 4 4 8 Average Capacity 5 | 4 4 7 Most Carried 6 | 3 4 6 Average Carried 3 | 1 3 3 Final Capacity 8 | 4 4 8 Final Carried 5 | 2 4 5 Class Distribution -------------------- 100% | Mutant Dominant Class ---------------- Mutant | -10/Materials Mutant | -9/Materials Resources | -11 -10 -9 ----------- Run | Scr Mat Mat Matter Collected 501 | 219 193 89 Remotely . | . . . Salvage Created 592 | . 258 334 Parts 38 | . 17 21 Haulers Intercepted 1 | . . 1 Recyclers Shooed . | . . . Parts Field Recycled . | . . . Retrieved Matter . | . . . Parts Self-Destructed . | . . . Prevented . | . . . Kills | -11 -10 -9 ------- Run | Scr Mat Mat Combat Hostiles Destroyed 16 | . 7 9 Guns 10 | . 7 3 Cannons 3 | . . 3 AOE 3 | . . 3 Classes Destroyed 6 | . 1 5 Worker 1 | . . 1 Builder 1 | . . 1 Hauler 1 | . . 1 Swarmer 3 | . . 3 Grunt 12 | . 7 5 Sentry 1 | . . 1 Best Kill Streak 5 | . 2 5 Combat Bots Only 4 | . 2 4 Max Kills in Single Turn 2 | . 1 2 Gunslinging . | . . . Exploded 1 | . . 1 Melee . | . . . Uniques/NPCs Destroyed . | . . . Combat | -11 -10 -9 -------- Run | Scr Mat Mat Damage Taken 482 | . 216 266 Core 74 | . 50 24 Absorbed by Shields . | . . . Core Remaining (%) 90 | 100 80 . Volleys Fired 50 | . 20 30 Largest 2 | . 2 2 Hottest 88 | . 40 88 Shots Fired 90 | . 39 51 Gun 79 | . 39 40 Cannon 7 | . . 7 Launcher 4 | . . 4 Special . | . . . Kinetic 65 | . 39 26 Thermal 21 | . . 21 Explosive 4 | . . 4 Electromagnetic . | . . . Robot Hit Streak 7 | . 6 7 Robot Miss Streak 4 | . 4 3 Penetration Max . | . . . Secondary Targets . | . . . Shots Hit Robots 52 | . 22 30 Core Hits 32 | . 15 17 Critical Hits 1 | . . 1 Critical Kills 1 | . . 1 Critical Parts Destroyed . | . . . Melee Attacks . | . . . Impact . | . . . Slashing . | . . . Piercing . | . . . Sneak Attacks . | . . . Combat Hostiles . | . . . Follow-up Attacks . | . . . Damage Inflicted 1036 | . 288 748 Guns 608 | . 288 320 Cannons 102 | . . 102 Explosions 326 | . . 326 Melee . | . . . Ramming . | . . . Kinetic 484 | . 288 196 Thermal 226 | . . 226 Explosive 326 | . . 326 Electromagnetic . | . . . Impact . | . . . Slashing . | . . . Piercing . | . . . Highest Corruption . | . . . Average Corruption . | . . . Corruption Purged . | . . . Overload Shots . | . . . Overflow Damage . | . . . Projectiles . | . . . Explosions . | . . . Melee . | . . . Knockbacks . | . . . Impact . | . . . Kinetic . | . . . Secondary . | . . . Self-Inflicted Damage . | . . . Shots . | . . . Rammed . | . . . Targets Rammed . | . . . Kicked . | . . . Crushed . | . . . Highest Temperature 180 | . 3 180 Average Temperature 54 | . 2 57 Received Heat Transfer 219 | . 117 102 Siege Activations . | . . . Robots Corrupted . | . . . Combat Hostiles . | . . . Parts Fried . | . . . Impact Corruptions . | . . . Robots Melted . | . . . Combat Hostiles . | . . . Parts Melted 1 | . . 1 Heat Transferred 460 | . . 460 Parts Sabotaged . | . . . Parts Stolen . | . . . Parts Stripped . | . . . Power Chain Reactions . | . . . Missiles Intercepted . | . . . Alert | -11 -10 -9 ------- Run | Scr Mat Mat Peak Influence 407 | . 215 407 Initial 90 | . . 90 Average 124 | . 93 182 Maximum Alert Level 2 | . 1 2 Low Security (%) 76 | 100 89 57 Level 1 23 | . 10 41 Level 2 . | . . 1 Level 3 . | . . . Level 4 . | . . . Level 5 . | . . . High Security . | . . . Max Security . | . . . Squads Dispatched 2 | . 2 . Investigation . | . . . Extermination . | . . . Reinforcement 2 | . 2 . Assault . | . . . Garrison . | . . . Intercept . | . . . Construction Impeded . | . . . Haulers Reinforced . | . . . Stealth | -11 -10 -9 --------- Run | Scr Mat Mat Distress Signals 2 | . 2 . Communications Jammed . | . . . Distress Signals . | . . . Times Spotted 27 | . 14 13 Peak Tracking Total 6 | . 6 4 Tactical Retreats 2 | . . 2 Traps | -11 -10 -9 ------- Run | Scr Mat Mat Traps Triggered . | . . . Indirectly . | . . . Trap Hack Attempts . | . . . Triggered . | . . . Disarmed . | . . . Reprogrammed . | . . . Reused . | . . . Traps Extracted . | . . . Installed . | . . . Triggered . | . . . Machines | -11 -10 -9 ---------- Run | Scr Mat Mat Machines Disabled . | . . . Max in Single Turn . | . . . Machines Sabotaged . | . . . Garrisons Compromised . | . . . Overloaded Fab Kills . | . . . Fab Network Shutdowns . | . . . Hacking | -11 -10 -9 --------- Run | Scr Mat Mat Machines Accessed 1 | . . 1 Terminals 1 | . . 1 Fabricators . | . . . Repair Stations . | . . . Recycling Units . | . . . Scanalyzers . | . . . Garrison Access . | . . . Total Hacks 2 | . . 2 Successful 1 | . . 1 Failed 1 | . . 1 Catastrophic . | . . . Database Lockouts . | . . . Manual . | . . . Terminals 2 | . . 2 Fabricators . | . . . Repair Stations . | . . . Recycling Units . | . . . Scanalyzers . | . . . Garrison Access . | . . . Terminal Hacks 1 | . . 1 Zone Layout 1 | . . 1 Fabricator Hacks . | . . . Repair Station Hacks . | . . . Recycling Unit Hacks . | . . . Scanalyzer . | . . . Garrison Access Hacks . | . . . Unauthorized Hacks . | . . . Terminals . | . . . Fabricators . | . . . Repair Stations . | . . . Recycling Units . | . . . Scanalyzers . | . . . Garrison Access . | . . . Data Cores Recovered . | . . . Used . | . . . Hacking Detections . | . . . Full Trace Events . | . . . Feedback Events . | . . . Feedback Blocked . | . . . Robot Schematics Acquired . | . . . Robots Built . | . . . Matter . | . . . Time . | . . . Total Robot Build Rating . | . . . Part Schematics Acquired . | . . . Parts Built . | . . . Matter . | . . . Time . | . . . Total Part Build Rating . | . . . Parts Repaired . | . . . Time . | . . . Parts Recycled . | . . . Recycled Matter . | . . . Retrieved Matter . | . . . Retrieved Components . | . . . Parts Scanalyzed . | . . . Part Schematics Acquired . | . . . Parts Damaged . | . . . Bothacking | -11 -10 -9 ------------ Run | Scr Mat Mat Used RIF Installer . | . . . Robots Hacked . | . . . Non-combat . | . . . Combat . | . . . Robot Hacks Applied . | . . . Relay Couplers Released . | . . . Robots Rewired . | . . . Allies Hacked . | . . . Hacks Repelled . | . . . Allies | -11 -10 -9 -------- Run | Scr Mat Mat Total Allies . | . . . Largest Group . | . . . Highest-Rated Group . | . . . Highest-Rated Ally . | . . . Total Orders . | . . . Ally Attacks . | . . . Total Damage . | . . . Kills . | . . . Allies Corrupted . | . . . Allies Melted . | . . . Intel | -11 -10 -9 ------- Run | Scr Mat Mat Robot Analysis Total . | . . . Derelict Logs Recovered . | . . . Drone Launches . | . . . Drone Recoveries . | . . . Exploration | -11 -10 -9 ------------- Run | Scr Mat Mat Turns Passed 683 | 57 325 301 Spaces Moved 674 | 52 288 334 Core 9 | 9 . . Treads . | . . . Legs . | . . . Wheels 173 | 43 130 . Hover 492 | . 158 334 Flight . | . . . Fastest Speed 48 | 50 56 48 Average Speed 61 | 83 71 48 Slowest Speed 112 | 90 90 112 Overloaded Moves . | . . . Propulsion Burnouts . | . . . Robots Hopped . | . . . Cave-ins Triggered . | . . . Exploration Rate (%) 26 | 4 52 23 Regions Visited 2 Branch Regions . Pre-discovered Areas . | . . . Known Exits Taken . | . . . Unknown Exits Taken 2 | 1 1 . Scrap Searched . | . . . Spaces Dug . | . . . Terrain Destroyed 17 | . . 17 Melee . | . . . Projectile . | . . . AOE 17 | . . 17 Terrain Rammed . | . . . Walls Destroyed . | . . . Machines Disabled . | . . . Actions | -11 -10 -9 --------- Run | Scr Mat Mat Total 860 | 65 371 424 Wait 84 | 2 41 41 Move 672 | 51 287 334 Hop . | . . . Pick Up 23 | 7 11 5 Fast Attach . | . . . Attach 18 | 5 5 8 Detach 5 | . . 5 Swap . | . . . Drop 8 | . 7 1 Fire 50 | . 20 30 Melee . | . . . Ram . | . . . Kick . | . . . Crush . | . . . Escape Stasis . | . . . Rewire . | . . . Trap . | . . . Miscellaneous . | . . . Route ------- -11/Scrapyard -10/Materials (discovered 2 exits: *Mat / [*Min]) -9/Materials (discovered 1 exit: [*Mat]) History --------- Turn | Location | Event 18 | -11/Scrapyard | Discovered new exit (range 16) 58 | -11/Scrapyard | Entered Materials 297 | -10/Materials | Discovered new exit (range 16) 334 | -10/Materials | Build established: Mutant 371 | -10/Materials | Discovered new exit (range 11) 383 | -10/Materials | Entered another Materials area 383 | -9/Materials | Evolved 2 slots: Propulsion x2 637 | -9/Materials | Discovered new exit (range 9) 684 | -9/Materials | Self-destructed Last Messages --------------- Retrieving Zone 8X layout... Downloaded map data. 00537_ R-06 Scavenger collects Med. Storage Unit. 00556_ Flight Unit melted. 00556_ S-10 Pest destroyed. 00565_ S-10 Pest suffers critical hit. 00565_ S-10 Pest destroyed. 00569_ Acquired Flight Unit. 00571_ Dropped Hover Unit. 00577_ Acquired Hover Unit. 00584_ Acquired 19 matter. 00586_ K-01 Serf collects debris. 00632_ U-05 Engineer lays Concrete. 00637_ EXIT=FOUND 00665_ Y-45 Defender destroyed. 00676_ G-34 Mercenary destroyed. 00678_ K-01 Serf destroyed. 00678_ G-47 Trooper destroyed. 00680_ G-34 Mercenary destroyed. 00681_ U-05 Engineer lays Concrete. Map ----- +----------------------------------------------------+ | #??????? ??????????????????????????????????? | | #??????? ??????????????????????????????????? | | ##?????# ???????????????????????????????????? | | ### ??? # ???????????????????????????????????? | | ??# """ ## #???????????????????????????????????? | | ??# ## #???????????????????????????????????? | | ??# """ ## #?????????? ????????????????????????? | | ??# """ ## ####### ????????????????????????? | | ??# """ ## + ???????????????????????????? | | ??# ## #???????????????????????????????? | | ??# ## #???????????????????????????????? | | #####+### #???????????????????????????????? | | #???????????????????????????????? | | #???????????????????????????????? | | = #???##?+#???????????????????????? | | = #???# ???????????????????????? | | ! ##### ???????????????????????? | | a ????????????????????????? | | ####+#### ## ?????????????????????????? | | # # ?????????????????????????? | | T """ # u= ###??????????????????????? | | """ # u= = ######?????????????????? | | """ # %= #?????????????????? | | / % =[ #?????????????????? | | # #?????????????????? | | # u @ #?????????????????? | | # #### ##### #?????????????????? | | ######### # # ??# #?????????????????? | | #???# # ??# ?# #######???????????? | | #???# + ??# ?# # """"""??????????? | | #???# # ??# # # """""""?????????? | | #???# + ??# # # """"""" ????????? | | #???# # ??# + + """"""" #???????? | | "" #???# # ??# # # """"""" #???????? | | "" #???# # ??# # < # #???????? | | "" #???# # ??# ?# # #???????? | | ????????? #????########?##### #???????? | | ????????? ?????????????????###########???????? | | ????????? #???????????????????????????????????? | | ????????? ?????????????????????????????????????? | | ?????????????????????????????????????????????????? | | ?????????????????????????????????????????????????? | | ?????????????????????????????????????????????????? | | ?????????????????????????????????????????????????? | | ?????????????????????????????????????????????????? | | ?????????????????????????????????????????????????? | | ?????????????????????????????????????????????????? | | ?????????????????????????????????????????????????? | | ?????????????????????????????????????????????????? | | ?????????????????????????????????????????????????? | +----------------------------------------------------+ Best States ------------- Heat Dissipation 28 Energy Generation 14 Energy Capacity 250 Matter Stores 300 Matter Capacity 300 Sight Range 16 Terrain Scan Density 10 Core Shielding 20 Evasion (%) 55 Item Schematics ----------------- None Robot Schematics ------------------ None Fabricated ------------ Nothing Alien Tech Used ----------------- None Achievements -------------- None Challenges ------------ None Game ------ Seed IntegratedTrapNanoactuators Manual? 0 Play Time 00:10:14 Cumulative 23.9 hours Start 2021.11.28 @ 17:03:20 End 2021.11.28 @ 18:15:06 Sessions 3 Manual Loads 0 Difficulty Rogue Special Mode None Game No. 30 Rogue 30 Adventurer 0 Explorer 0 Win Type - Total 0 Types 0/0/0/0/0/0/0/0/0 Lore% 8 Gallery% 17 Achievement% 15 Wizard Run 0 Options --------- ASCII 0 Keyboard 1 Movement Vi Keybinds 0 Fullscreen 1 Font 18/SmallcapsGlow Map View 76x50 Tactical HUD 1 Map Filters NONE Filters NONE Steam 1 RUN: f030f1d2-2161-4cdb-bbbf-562d777f48ab